bitfinex-derivatives/quotes_ETHF0:USTF0_20250502
["timestamp","ask_amount","ask_price","bid_price","bid_amount"]
[1746157278229,3.55e-06,1848.4,1848.3,49.4412]
[1746157278430,3.60070911,1848.6,1848.5,1.08168]
[1746157278632,3.60070911,1848.6,1848.5,7.73548]
[1746157279037,3.60070911,1848.6,1848.5,9.36618]
[1746157279537,5.838,1848.7,1848.6,1.08162]
[1746157279737,7.5682,1848.7,1848.6,43.51232]
[1746157279937,1.7302,1848.7,1848.6,43.51232]
[1746157280436,1.7302,1848.7,1848.6,41.88162]
[1746157281038,2.81177,1848.7,1848.6,40.8]
[1746157281238,6.50777,1848.7,1848.6,40.8]
[1746157282239,10.10847911,1848.7,1848.6,40.8]
[1746157282639,10.10847911,1848.7,1848.6,41.88162]
[1746157283745,9.02690911,1848.7,1848.6,41.88162]
[1746157284744,10.10847911,1848.7,1848.6,41.88162]
[1746157285042,9.02690911,1848.7,1848.6,41.88162]
[1746157285543,10.10847911,1848.7,1848.6,40.8]
[1746157285937,10.10847911,1848.7,1848.6,41.88162]
[1746157286340,10.10847911,1848.7,1848.6,40.8]
[1746157287543,9.02690911,1848.7,1848.6,41.88162]
[1746157287741,9.02690911,1848.7,1848.6,43.57402]
[1746157288041,9.71662042,1848.7,1848.6,43.57402]
[1746157289443,7.98642042,1848.7,1848.6,43.57402]
[1746157289632,7.98642042,1848.7,1848.6,44.37562]
[1746157290244,4.29042042,1848.7,1848.6,44.37562]
[1746157291145,6.47703647,1848.8,1848.7,1.08157]
[1746157291146,1.08152,1848.8,1848.7,1.08157]
[1746157291438,1.08162,1848.6,1848.5,3.2078]
[1746157291639,1.87842,1848.7,1848.5,1.08167]
[1746157291832,1.90612,1848.6,1848.5,1.08167]
[1746157292538,0.8245,1848.6,1848.5,1.08167]
[1746157292842,1.24947746,1848.6,1848.5,1.08167]
[1746157293145,4.94547746,1848.6,1848.5,1.08167]
[1746157294346,2.33109746,1848.6,1848.5,1.08167]
[1746157294635,1.24947746,1848.6,1848.5,1.08167]
[1746157294846,2.33109746,1848.6,1848.5,1.08167]
[1746157295432,1.08168,1848.5,1848.4,1.94443]
[1746157295636,2.33111746,1848.6,1848.5,1.08168]
[1746157295836,1.90614,1848.6,1848.5,1.08168]
[1746157296142,6.02713859,1848.6,1848.5,1.08168]
[1746157298153,4.94549859,1848.6,1848.5,1.08168]
[1746157298340,4.94549859,1848.6,1848.5,2.67758]
[1746157299144,6.02711859,1848.6,1848.5,1.5959]
[1746157299346,6.02715859,1848.6,1848.4,1.9444]
[1746157299549,1.50667859,1848.5,1848.4,1.9444]
[1746157299846,0.42499859,1848.5,1848.4,3.5808]
[1746157302741,0.42499859,1848.6,1848.5,1.08168]
[1746157302937,0.42499859,1848.6,1848.5,2.81238]
[1746157303150,4.12099859,1848.6,1848.5,2.81238]
[1746157304750,6.82921859,1848.6,1848.5,2.81238]
[1746157305936,5.74759859,1848.6,1848.5,2.81238]
[1746157306336,5.74759859,1848.6,1848.5,6.02018]
[1746157306537,4.12099859,1848.6,1848.5,14.46518]
[1746157306746,4.12099859,1848.6,1848.5,15.26898]
[1746157307249,0.42499859,1848.6,1848.5,15.26898]
[1746157308250,3.60070911,1848.7,1848.6,1.08162]
[1746157308445,3.60070911,1848.7,1848.6,2.69442]
[1746157308949,4.02579062,1848.7,1848.6,2.69442]
[1746157310851,0.42508151,1848.7,1848.6,2.69442]
[1746157313150,1.23798151,1848.7,1848.6,2.69442]
[1746157313454,1.23798151,1848.7,1848.6,1.08162]
[1746157313653,2.06018151,1848.7,1848.6,1.08162]
[1746157313855,3.74708151,1848.7,1848.6,1.08162]
[1746157314047,7.44308151,1848.7,1848.6,1.08162]
[1746157316753,7.44308151,1848.7,1848.6,2.67682]
[1746157318853,7.44308151,1848.7,1848.6,1.08162]
[1746157319856,8.52465151,1848.7,1848.6,1.08162]
[1746157320159,7.44308151,1848.7,1848.6,1.08162]
[1746157320353,15.65088151,1848.7,1848.3,44.0078]
[1746157320550,1.08174,1848.4,1848.3,40.8]
[1746157320752,0.42508151,1848.4,1848.3,40.8]
[1746157321053,4.12108151,1848.4,1848.3,40.8]
[1746157321258,7.46778151,1848.4,1848.3,40.8]
[1746157321459,7.46778151,1848.4,1848.3,41.8818]
[1746157323358,7.46778151,1848.4,1848.3,1.0818]
[1746157327363,6.60448151,1848.4,1848.3,1.0818]
[1746157327662,4.12108151,1848.4,1848.3,7.6883]
[1746157327868,3.696,1848.4,1848.3,8.5096]
[1746157328257,3.60070911,1848.6,1848.5,1.08168]
[1746157328456,5.23300911,1848.6,1848.5,1.08168]
[1746157328765,5.65770135,1848.6,1848.5,1.08168]
[1746157328966,5.65770135,1848.6,1848.5,2.68818]
[1746157329465,5.23300911,1848.6,1848.5,2.68818]
[1746157329765,5.65770935,1848.6,1848.5,2.68818]
[1746157331062,2.05700024,1848.6,1848.5,2.68818]
[1746157332658,0.42470024,1848.6,1848.5,2.68818]
[1746157339170,0.42470024,1848.6,1848.5,43.48818]
[1746157342366,6.22204983,1849.1,1848.5,52.81492]
[1746157342568,2.66233994,1849.1,1849.0,4.28919]
[1746157342768,2.66233994,1849.1,1849.0,7.73319]
[1746157343272,2.66233994,1849.1,1849.0,52.22919]
[1746157344267,2.66233994,1849.1,1849.0,48.53319]
[1746157344874,2.66233994,1849.1,1849.0,45.08919]
[1746157345174,4.27383994,1849.1,1849.0,48.53319]
[1746157346271,5.09053994,1849.1,1849.0,48.53319]
[1746157346575,2.4282,1849.1,1849.0,48.53219]
[1746157347571,3.2078,1849.7,1849.1,2.70334]
[1746157347869,14.79323488,1849.9,1849.1,2.70334]
[1746157347870,3.4283,1849.6,1849.5,4.2889]
[1746157348072,3.4283,1849.6,1849.4,0.8186]
[1746157348273,1.7224,1849.5,1849.3,6.6508]
[1746157348478,1.7224,1849.5,1849.4,1.08116]
[1746157349176,5.4184,1849.5,1849.4,1.08116]
[1746157350173,2.80351,1849.5,1849.3,4.28899]
[1746157350376,1.7224,1849.4,1849.3,4.28899]
[1746157351277,5.4184,1849.4,1849.3,4.28899]
[1746157352178,1.7224,1849.4,1849.3,4.28899]
[1746157353177,1.7224,1849.4,1849.3,5.08799]
[1746157355470,1.7224,1849.4,1849.3,4.28899]
[1746157364283,5.4184,1849.4,1849.3,4.28899]
[1746157365482,3.696,1849.4,1849.3,4.28899]
[1746157365684,3.696,1849.4,1849.3,6.74079]
[1746157366181,2.71351,1849.7,1849.5,1.08109]
[1746157366483,1.6325,1849.6,1849.5,1.08109]
[1746157366682,1.6325,1849.6,1849.3,5.6596]
[1746157366882,1.6442,1849.5,1849.3,5.6596]
[1746157367080,1.6325,1849.4,1849.3,6.74081]
[1746157368286,1.6325,1849.4,1849.3,5.95021]
[1746157374086,5.3285,1849.4,1849.1,6.6488]
[1746157374390,5.3285,1849.4,1849.3,1.08121]
[1746157374689,3.696,1849.4,1849.3,1.08121]
[1746157375990,3.696,1849.4,1849.3,2.71051]
[1746157376191,1.6442,1849.5,1849.3,2.71051]
[1746157376391,0.42617598,1849.4,1849.3,2.71051]
[1746157378689,0.42617598,1849.4,1849.3,1.08121]
[1746157378994,1.50733598,1849.4,1849.3,1.08121]
[1746157379194,4.12217598,1849.4,1849.3,1.08121]
[1746157379701,5.20333598,1849.4,1849.3,1.08121]
[1746157380801,5.20337598,1849.4,1849.2,1.08123]
[1746157381203,5.20337598,1849.4,1849.3,1.08121]
[1746157382196,4.12217598,1849.4,1849.3,1.08121]
[1746157382604,4.12217598,1849.4,1849.3,4.28901]
[1746157383004,4.12217598,1849.4,1849.3,1.93041]
[1746157383206,0.42617598,1849.4,1849.3,1.93041]
[1746157384505,6.91901,1849.7,1849.3,4.057]
[1746157384706,0.8335,1849.6,1849.5,1.08106]
[1746157385102,1.91454,1849.6,1849.5,1.08106]
[1746157385298,5.61054,1849.6,1849.5,1.08106]
[1746157385503,1.0811,1849.5,1849.4,4.52212]
[1746157385698,5.61058,1849.6,1849.4,4.52212]
[1746157386008,5.61058,1849.6,1849.5,1.0811]
[1746157386210,0.8335,1849.6,1849.5,1.0811]
[1746157386613,0.8335,1849.6,1849.5,2.7112]
[1746157386806,13.03021795,1849.9,1849.7,1.08095]
[1746157387111,2.78282,1849.8,1849.7,1.08095]
[1746157388103,6.47882,1849.8,1849.7,1.08095]
[1746157388305,6.47882,1849.8,1849.6,3.5812]
[1746157388904,4.77692,1849.8,1849.6,3.5812]
[1746157389105,0.8275,1849.7,1849.6,3.5812]
[1746157390115,4.5235,1849.7,1849.6,3.5812]
[1746157391514,3.696,1849.7,1849.6,3.5812]
[1746157392117,1.6329,1849.9,1849.8,1.08092]
[1746157392309,1.6329,1849.9,1849.7,3.2078]
[1746157392508,1.08092,1849.8,1849.7,3.2078]
[1746157392810,1.08092,1849.8,1849.7,1.08098]
[1746157393116,4.77692,1849.8,1849.7,1.08098]
[1746157393612,3.696,1849.8,1849.7,2.68898]
[1746157394616,5.3751,1849.8,1849.7,2.68898]
[1746157396212,1.6791,1849.8,1849.7,2.68898]
[1746157396813,2.10587091,1849.8,1849.7,2.68898]
[1746157397710,0.42677091,1849.8,1849.7,6.12998]
[1746157398014,0.42677091,1849.8,1849.7,6.91868]
[1746157399420,1.6343,1850.0,1849.9,1.08086]
[1746157399915,2.06078908,1850.0,1849.9,1.08086]
[1746157400121,5.75678908,1850.0,1849.9,1.08086]
[1746157401123,2.06078908,1850.0,1849.9,2.72876]
[1746157408528,2.06078908,1850.0,1849.9,1.08086]
[1746157409529,0.42648908,1850.0,1849.9,1.08086]
[1746157409728,0.42648908,1850.0,1849.9,2.77616]
[1746157411325,0.42648908,1850.0,1849.9,43.57616]
[1746157411721,0.42648908,1850.0,1849.7,12.86415]
[1746157411722,0.42648908,1850.0,1849.4,3.2078]
[1746157411926,3.2078,1849.8,1849.4,4.8907]
[1746157412229,3.2078,1849.8,1849.7,1.08098]
[1746157412426,0.42648908,1849.8,1849.7,1.08098]
[1746157412638,0.42648908,1849.8,1849.7,4.55398]
[1746157413129,0.42648908,1849.8,1849.7,6.23688]
[1746157413338,0.42648908,1849.8,1849.7,47.03688]
[1746157416133,0.42648908,1849.8,1849.7,50.73288]
[1746157416838,0.42648908,1849.8,1849.7,51.59188]
[1746157417335,0.42648908,1849.8,1849.7,47.89588]
[1746157418929,0.42648908,1850.0,1849.9,1.08086]
[1746157419532,0.42648908,1850.0,1849.9,2.77736]
[1746157419729,0.42648908,1850.0,1849.9,3.56646]
[1746157420339,0.42648908,1850.0,1849.9,44.36646]
[1746157420639,0.42648908,1850.1,1850.0,1.08081]
[1746157420939,0.42648908,1850.1,1850.0,6.29601]
[1746157421236,4.12248908,1850.1,1850.0,6.29601]
[1746157422233,0.42648908,1850.1,1850.0,6.29601]
[1746157422634,0.42648908,1850.1,1850.0,9.50381]
[1746157423338,0.42648908,1850.2,1850.1,1.08075]
[1746157424336,2.00728908,1850.2,1850.1,1.08075]
[1746157426239,2.00728908,1850.2,1850.1,4.28855]
[1746157426636,2.00728908,1850.2,1850.1,6.03875]
[1746157428943,9.08e-06,1850.2,1850.1,6.03875]
[1746157429138,9.08e-06,1850.2,1850.1,11.03875]
[1746157429442,3.3901,1850.5,1850.4,1.08057]
[1746157429643,3.3901,1850.5,1850.4,7.76137]
[1746157430141,3.3901,1850.5,1850.4,8.57757]
[1746157430740,3.3901,1850.5,1850.4,4.55357]
[1746157432843,3.3901,1850.5,1850.4,3.473]
[1746157433137,3.3901,1850.5,1850.4,4.55357]
[1746157434445,3.3901,1850.5,1850.2,6.6808]
[1746157434634,1.6686,1850.4,1850.3,1.08061]
[1746157435847,2.74917,1850.4,1850.3,1.08061]
[1746157436742,2.74917,1850.4,1850.2,7.76146]
[1746157436943,2.74083,1850.3,1850.2,7.76146]
[1746157437443,1.6602,1850.3,1850.2,7.76146]
[1746157438343,2.74083,1850.3,1850.2,7.76146]
[1746157438544,1.6602,1850.3,1850.2,7.76146]
[1746157439144,2.74083,1850.3,1850.2,7.76146]
[1746157440641,2.74083,1850.3,1850.2,3.2078]
[1746157440843,1.08069,1850.2,1850.1,4.55373]
[1746157441044,4.43929,1850.2,1850.1,4.55373]
[1746157441345,4.43929,1850.2,1850.1,3.473]
[1746157441942,4.43929,1850.2,1850.0,3.473]
[1746157442140,1.5881,1850.1,1850.0,4.55381]
[1746157442342,1.5881,1850.1,1850.0,2.81961]
[1746157442940,1.5881,1850.1,1850.0,6.28361]
[1746157443345,1.5881,1850.1,1850.0,9.49141]
[1746157444843,1.5881,1850.1,1850.0,7.75261]
[1746157447235,1.5881,1850.1,1850.0,6.6718]
[1746157447434,1.5881,1850.1,1849.9,40.8]
[1746157447435,1.08081,1850.0,1849.9,40.8]
[1746157447640,2.66889,1850.1,1849.9,41.88086]
[1746157448048,1.6114,1850.0,1849.9,41.88086]
[1746157448547,2.69221,1850.0,1849.8,4.54487]
[1746157448749,1.6304,1849.9,1849.8,4.54487]
[1746157448950,3.3328,1849.9,1849.8,4.54487]
[1746157456455,3.3328,1849.9,1849.8,6.23827]
[1746157456755,3.3328,1849.9,1849.8,5.1574]
[1746157456954,3.3328,1849.9,1849.8,6.23832]
[1746157459052,4.41366,1849.9,1849.8,6.23832]
[1746157459358,3.3328,1849.9,1849.8,6.23832]
[1746157462560,3.3328,1849.9,1849.8,4.54492]
[1746157462859,3.3328,1849.9,1849.8,1.08092]
[1746157463258,7.0288,1849.9,1849.8,41.88092]
[1746157463969,8.10966,1849.9,1849.8,41.88092]
[1746157464168,8.10966,1849.9,1849.8,40.8]
[1746157464367,8.53735776,1849.9,1849.8,41.88092]
[1746157464667,8.53735776,1849.9,1849.7,1.08096]
[1746157464966,2.05689776,1849.8,1849.7,1.08096]
[1746157465160,3.13781776,1849.8,1849.7,40.8]
[1746157465867,3.13781776,1849.8,1849.7,41.88098]
[1746157466370,6.83381776,1849.8,1849.7,40.8]
[1746157466572,6.83381776,1849.8,1849.7,41.88098]
[1746157466771,6.83381776,1849.8,1849.7,40.8]
[1746157467872,6.83381776,1849.8,1849.7,41.88098]
[1746157468475,5.75289776,1849.8,1849.7,41.88098]
[1746157469172,6.83381776,1849.8,1849.7,40.8]
[1746157469780,6.83381776,1849.8,1849.7,41.88098]
[1746157470374,5.75289776,1849.8,1849.7,41.88098]
[1746157470574,6.83381776,1849.8,1849.7,41.88098]
[1746157471277,3.13781776,1849.8,1849.7,41.88098]
[1746157473578,3.13781776,1849.8,1849.7,40.8]
[1746157474078,1.08107,1849.6,1849.5,1.08109]
[1746157474278,1.0811,1849.5,1849.4,7.73594]
[1746157474475,4.352,1849.5,1849.4,48.53594]
[1746157474676,4.352,1849.5,1849.4,49.36864]
[1746157474973,4.77969776,1849.5,1849.4,49.36864]
[1746157475179,3.69859776,1849.5,1849.4,49.36864]
[1746157475477,4.77969776,1849.5,1849.4,49.36864]
[1746157476075,3.69859776,1849.5,1849.4,49.36864]
[1746157477278,3.69859776,1849.5,1849.4,53.06464]
[1746157478083,3.69859776,1849.5,1849.4,49.36864]
[1746157478578,4.77969776,1849.5,1849.4,49.36864]
[1746157480080,4.77969776,1849.5,1849.4,53.06464]
[1746157482279,3.96759776,1849.5,1849.4,53.06464]
[1746157482772,2.88649776,1849.5,1849.4,53.06464]
[1746157483079,3.96759776,1849.5,1849.4,53.06464]
[1746157485180,3.96759776,1849.5,1849.4,49.36864]
[1746157486084,3.96759776,1849.5,1849.4,53.06464]
[1746157488383,2.88649776,1849.5,1849.4,53.06464]
[1746157489481,3.96759776,1849.5,1849.4,6.9038]
[1746157489984,3.96759776,1849.5,1849.4,47.7038]
[1746157490180,3.96759776,1849.5,1849.4,44.0078]
[1746157490484,3.96759776,1849.5,1849.4,45.08896]
[1746157492276,3.96759776,1849.5,1849.4,44.0078]
[1746157492782,7.17539776,1849.5,1849.4,40.8]
[1746157492986,1.08116,1849.4,1849.3,0.822]
[1746157493187,3.60256,1849.4,1849.3,0.822]
[1746157493486,3.60256,1849.4,1849.3,41.622]
[1746157493789,4.03025776,1849.4,1849.3,41.622]
[1746157494088,4.03025776,1849.4,1849.3,40.8]
[1746157495492,1.08121,1849.3,1849.2,0.7995]
[1746157495789,2.70751,1849.3,1849.2,0.7995]
[1746157496089,3.13520776,1849.3,1849.2,0.7995]
[1746157499285,3.13520776,1849.3,1849.2,1.88077]
[1746157502292,3.13520776,1849.3,1849.2,0.7995]
[1746157503594,2.05399776,1849.3,1849.2,1.88077]
[1746157503794,2.05399776,1849.3,1849.2,3.57587]
[1746157504496,0.42769776,1849.3,1849.2,3.57587]
[1746157505092,0.42769776,1849.4,1849.3,1.08121]
[1746157505392,0.42769776,1849.4,1849.3,1.94361]
[1746157506095,0.42769776,1849.4,1849.3,5.63961]
[1746157508091,0.42769776,1849.4,1849.3,8.84741]
[1746157509498,0.42769776,1849.6,1849.5,1.0811]
[1746157509993,0.42769776,1849.6,1849.5,4.2889]
[1746157510190,0.42769776,1849.6,1849.5,7.9849]
[1746157510596,0.42769776,1849.6,1849.5,12.9849]
[1746157511300,3.60748484,1849.7,1849.6,1.08104]
[1746157511500,3.60748484,1849.7,1849.6,1.87484]
[1746157511802,4.03537007,1849.7,1849.6,1.87484]
[1746157512696,3.60748484,1849.7,1849.6,1.87484]
[1746157513393,1.6739,1849.8,1849.7,1.08098]
[1746157513596,1.6739,1849.8,1849.7,4.28878]
[1746157514199,2.10145599,1849.8,1849.7,7.98478]
[1746157519106,2.10145599,1849.8,1849.7,4.28878]
[1746157519402,0.42755599,1849.8,1849.7,4.28878]
[1746157519709,3.2888,1850.0,1849.9,1.08086]
[1746157519905,4.36961,1850.0,1849.9,1.08086]
[1746157520099,4.79670881,1850.0,1849.9,1.08086]
[1746157520298,3.71589881,1850.0,1849.9,1.08086]
[1746157520607,4.79670881,1850.0,1849.9,1.08086]
[1746157521208,3.71589881,1850.0,1849.9,1.08086]
[1746157521910,4.79670881,1850.0,1849.9,1.08086]
[1746157522113,3.71589881,1850.0,1849.9,1.08086]
[1746157522506,4.79670881,1850.0,1849.9,1.08086]
[1746157524710,3.71589881,1850.0,1849.9,1.08086]
[1746157525015,4.79670881,1850.0,1849.9,1.08086]
[1746157525402,3.71589881,1850.0,1849.9,1.08086]
[1746157525902,4.79670881,1850.0,1849.9,1.08086]
[1746157526111,4.79670881,1850.0,1849.8,4.0601]
[1746157526112,1.08086,1849.9,1849.8,1.93318]
[1746157526415,1.08102,1849.7,1849.3,9.35377]
[1746157526617,3.3037,1849.6,1849.5,4.2889]
[1746157527013,3.73079881,1849.6,1849.5,4.2889]
[1746157527412,4.81183881,1849.6,1849.5,3.2078]
[1746157528614,4.81183881,1849.6,1849.5,4.2889]
[1746157529408,4.81183881,1849.6,1849.5,3.2078]
[1746157530012,4.81183881,1849.6,1849.5,4.2889]
[1746157530519,4.81183881,1849.6,1849.5,3.2078]
[1746157530815,1.0811,1849.5,1849.4,3.443]
[1746157531016,2.7137,1849.5,1849.4,3.443]
[1746157531219,2.7137,1849.5,1849.3,4.28897]
[1746157531409,2.05969881,1849.4,1849.3,4.28897]
[1746157531811,2.05969881,1849.4,1849.3,1.08117]
[1746157534117,2.05969881,1849.4,1849.3,2.67597]
[1746157534717,3.14085881,1849.4,1849.3,2.67597]
[1746157535015,2.05969881,1849.4,1849.3,2.67597]
[1746157535317,3.14085881,1849.4,1849.3,1.08117]
[1746157535820,2.05969881,1849.4,1849.3,1.08117]
[1746157538223,3.14086881,1849.4,1849.3,1.08121]
[1746157538624,2.05969881,1849.4,1849.3,1.08121]
[1746157540217,2.05969881,1849.4,1849.3,6.42761]
[1746157544024,0.42709881,1849.4,1849.3,6.42761]
[1746157544326,0.42709881,1849.4,1849.3,11.42761]
[1746157545023,0.42709881,1849.6,1849.5,1.0811]
[1746157545221,0.42709881,1849.6,1849.5,4.5241]
[1746157545924,2.92829881,1849.6,1849.5,4.5241]
[1746157547128,2.92829881,1849.6,1849.5,6.1017]
[1746157547524,2.05429881,1849.6,1849.5,6.1017]
[1746157548033,0.42709881,1849.6,1849.5,6.1017]
[1746157548223,0.42709881,1849.6,1849.5,10.6456]
[1746157548927,0.42709881,1849.7,1849.6,1.08104]
[1746157549128,0.42709881,1849.7,1849.6,5.91784]
[1746157550031,2.11729881,1849.9,1849.8,1.08092]
[1746157550231,2.11729881,1849.9,1849.8,4.28872]
[1746157553535,0.42709881,1849.9,1849.8,4.28872]
[1746157553732,0.42709881,1849.9,1849.8,5.09072]
[1746157554120,0.42709881,1849.9,1849.8,8.78672]
[1746157554519,0.42709881,1849.9,1849.8,12.22872]
[1746157555033,6.89358484,1850.3,1850.2,1.08069]
[1746157555225,5.7171871,1850.3,1850.2,1.08069]
[1746157555426,5.71724574,1850.3,1850.2,1.08069]
[1746157556429,4.84924574,1850.3,1850.2,1.08069]
[1746157557131,4.84895513,1850.3,1850.2,2.78519]
[1746157557333,1.24147029,1850.3,1850.2,2.78519]
[1746157557635,0.42717029,1850.3,1850.2,2.78519]
[1746157557930,0.868,1850.4,1850.3,1.08063]
[1746157558226,1.29512033,1850.4,1850.3,1.08063]
[1746157558430,1.2950945,1850.4,1850.3,41.88063]
[1746157558631,1.29509377,1850.4,1850.3,41.88063]
[1746157559632,1.29481727,1850.4,1850.3,41.88063]
[1746157560527,1.29478611,1850.4,1850.3,41.88063]
[1746157561129,1.2947863,1850.4,1850.3,41.88063]
[1746157562629,1.29476798,1850.4,1850.3,41.88063]
[1746157562823,0.868,1850.4,1850.3,43.47333]
[1746157563029,0.42657887,1850.4,1850.3,43.47333]
[1746157563430,1.7381,1850.7,1850.6,1.08046]
[1746157563631,2.16461032,1850.7,1850.6,1.08046]
[1746157563826,2.16461046,1850.7,1850.6,1.08046]
[1746157564032,2.16459837,1850.7,1850.6,1.08046]
[1746157564529,1.29917551,1850.7,1850.6,5.95766]
[1746157565135,0.8727,1850.7,1850.6,5.95766]
[1746157569740,0.8337,1850.9,1850.8,1.08034]
[1746157569940,1.6749,1850.9,1850.8,1.08034]
[1746157570237,2.75518,1850.9,1850.8,1.08034]
[1746157570541,2.75518,1850.9,1850.7,1.08036]
[1746157570841,2.75518,1850.9,1850.8,1.08034]
[1746157571140,1.6749,1850.9,1850.8,41.88034]
[1746157572030,0.8412,1850.9,1850.8,44.48364]
[1746157572233,0.8412,1850.9,1850.8,48.17964]
[1746157572432,0.8412,1850.9,1850.8,51.38744]
[1746157573736,1.95296,1851.1,1850.8,51.38744]
[1746157573737,0.8728,1851.1,1851.0,1.08022]
[1746157574141,0.8728,1851.1,1851.0,4.77622]
[1746157574437,0.8728,1851.1,1851.0,3.696]
[1746157574643,3.69336,1851.1,1851.0,3.696]
[1746157575139,1.08023,1851.0,1850.9,1.08028]
[1746157575340,2.82063,1851.0,1850.9,1.08028]
[1746157575643,1.7404,1851.0,1850.9,1.08028]
[1746157575944,2.82062,1851.0,1850.9,1.08028]
[1746157576733,1.7404,1851.0,1850.8,45.08808]
[1746157576938,2.3987,1850.9,1850.8,45.08808]
[1746157577644,3.47898,1850.9,1850.8,40.8]
[1746157578646,2.3987,1850.9,1850.8,41.88034]
[1746157579041,3.47898,1850.9,1850.8,40.8]
[1746157583248,3.47898,1850.9,1850.8,41.88034]
[1746157583646,3.47898,1850.9,1850.8,40.8]
[1746157585850,3.47898,1850.9,1850.8,41.88034]
[1746157586149,2.3987,1850.9,1850.8,41.88034]
[1746157586347,3.47898,1850.9,1850.8,41.88034]
[1746157586549,3.47898,1850.9,1850.8,40.8]
[1746157586949,2.3987,1850.9,1850.8,41.88034]
[1746157587252,1.58,1850.9,1850.8,42.75144]
[1746157587451,2.74962,1851.1,1850.9,1.08024]
[1746157587647,1.6589,1851.0,1850.9,2.82254]
[1746157587945,0.7966,1851.1,1850.9,2.82254]
[1746157588148,3.53568,1851.1,1850.9,6.26253]
[1746157588343,1.08022,1851.0,1850.9,6.26253]
[1746157588544,2.73912,1851.0,1850.9,6.26253]
[1746157588744,1.6589,1851.0,1850.9,6.26253]
[1746157595952,0.7966,1851.1,1850.9,5.1823]
[1746157596154,1.91775,1851.2,1851.0,1.6901]
[1746157596354,1.91775,1851.2,1851.1,1.08016]
[1746157596555,1.08015,1851.2,1851.1,1.08016]
[1746157596755,2.81155,1851.2,1851.1,2.5305]
[1746157596956,2.81155,1851.2,1851.1,0.8404]
[1746157597254,2.81155,1851.2,1851.1,1.92056]
[1746157597455,1.7314,1851.2,1851.1,1.92056]
[1746157597654,2.81151,1851.2,1851.1,3.61066]
[1746157597955,1.7314,1851.2,1851.1,3.61066]
[1746157599357,2.81151,1851.2,1851.1,3.61066]
[1746157601450,1.7314,1851.2,1851.1,3.61066]
[1746157601751,2.81151,1851.2,1851.1,3.61066]
[1746157602052,2.81151,1851.2,1851.1,2.5305]
[1746157602257,1.08021,1851.1,1851.0,1.08022]
[1746157602450,1.653,1851.1,1851.0,1.08022]
[1746157603258,1.653,1851.1,1851.0,2.76452]
[1746157603560,2.73316,1851.1,1851.0,2.76452]
[1746157604858,2.73316,1851.1,1851.0,1.6843]
[1746157605252,1.08022,1851.0,1850.9,1.87666]
[1746157605454,3.4384,1851.0,1850.9,1.87666]
[1746157605756,3.4384,1851.0,1850.9,3.54326]
[1746157606562,2.5638,1851.0,1850.9,3.54326]
[1746157608955,0.8616,1851.0,1850.9,3.54326]
[1746157609764,1.6041,1851.1,1851.0,1.08022]
[1746157610055,1.6041,1851.1,1851.0,2.75442]
[1746157611662,2.68426,1851.1,1851.0,2.75442]
[1746157611960,2.68426,1851.1,1851.0,1.08022]
[1746157612354,1.6041,1851.1,1851.0,1.08022]
[1746157612554,2.68426,1851.1,1851.0,1.08022]
[1746157612854,1.6041,1851.1,1851.0,1.08022]
[1746157614763,1.6041,1851.1,1851.0,2.75802]
[1746157622772,1.6041,1851.1,1851.0,1.08022]
[1746157623664,2.68426,1851.1,1851.0,1.08022]
[1746157624166,1.6041,1851.1,1851.0,1.08022]
[1746157624867,2.03260444,1851.1,1851.0,1.08022]
[1746157626370,2.03260444,1851.1,1851.0,2.72142]
[1746157632676,2.03260444,1851.1,1851.0,5.92922]
[1746157635375,3.11276444,1851.1,1851.0,4.28802]
[1746157635573,1.08022,1851.0,1850.9,1.93676]
[1746157635876,2.01510444,1851.0,1850.9,5.14456]
[1746157638073,2.01510444,1851.0,1850.9,6.82186]
[1746157638371,2.01510444,1851.0,1850.9,10.51786]
[1746157639073,0.42850444,1851.0,1850.9,10.51786]
[1746157643985,2.14620444,1851.0,1850.9,10.51786]
[1746157644686,1.7177,1851.0,1850.9,10.51786]
[1746157645188,0.8172,1851.1,1851.0,1.08022]
[1746157645488,2.5349,1851.1,1851.0,1.08022]
[1746157646089,2.5349,1851.1,1851.0,4.77622]
[1746157649188,2.5349,1851.1,1851.0,1.08022]
[1746157650190,3.61506,1851.1,1851.0,1.08022]
[1746157650382,2.5349,1851.1,1851.0,1.08022]
[1746157650786,3.61506,1851.1,1851.0,1.08022]
[1746157650990,2.5349,1851.1,1851.0,1.08022]
[1746157652593,2.96746645,1851.1,1851.0,1.08022]
[1746157655797,2.96746645,1851.1,1850.9,7.72604]
[1746157655998,2.525,1851.0,1850.9,7.72604]
[1746157656397,2.95756645,1851.0,1850.9,7.72604]
[1746157661598,2.95756645,1851.0,1850.9,8.56984]
[1746157661898,2.95756645,1851.0,1850.9,7.72604]
[1746157662402,2.95756645,1851.0,1850.9,8.56984]
[1746157665805,2.16116645,1851.0,1850.9,8.56984]
[1746157666102,2.16116645,1851.0,1850.9,10.47594]
[1746157667095,2.16116645,1851.0,1850.9,6.77994]
[1746157668101,2.16116645,1851.0,1850.9,10.47594]
[1746157669505,0.43256645,1851.0,1850.9,10.47594]
[1746157680606,2.08066645,1851.0,1850.9,10.47594]
[1746157684511,2.08066645,1851.0,1850.9,7.98408]
[1746157684710,0.43256645,1851.0,1850.9,7.98408]
[1746157684911,0.43256645,1851.0,1850.9,9.68348]
[1746157685924,0.43256645,1851.0,1850.9,10.55618]
[1746157687207,0.43256645,1851.0,1850.9,7.98408]
[1746157687715,2.17826645,1851.0,1850.9,7.98408]
[1746157691127,2.17826645,1851.0,1850.9,4.28808]
[1746157694026,2.17829832,1851.0,1850.9,4.28808]
[1746157696226,2.17829832,1851.0,1850.9,7.98408]
[1746157697125,3.25851832,1851.0,1850.9,3.2078]
[1746157697326,3.25851832,1851.0,1850.9,4.28808]